[Event "Titled Tuesday Blitz May 10 Early 2022"]
[White "Sadhwani, Raunak"]
[Black "Nagy, Gabor"]
[WhiteFideId "35093487"]
[BlackFideId "737119"]
[WhiteElo "2616"]
[BlackElo "2569"]
[Result "0-1"]
[Round "05"]
[TimeControl "180+1"]
[Date "2022.05.10"]
[WhiteClock "0:00:07"]
[BlackClock "0:00:49"]

1. e4 {[%clk 0:03:00]}  c5 {[%clk 0:02:58]} 2. Nf3 {[%clk 0:03:00]}  e6 {[%clk 0:02:58]} 3. b3 {[%clk 0:03:00]}  a6 {[%clk 0:02:56]} 4. Bb2 {[%clk 0:03:01]}  b5 {[%clk 0:02:56]} 5. d4 {[%clk 0:02:53]}  cxd4 {[%clk 0:02:55]} 6. Nxd4 {[%clk 0:02:54]}  Bb7 {[%clk 0:02:56]} 7. Nd2 {[%clk 0:02:55]}  Nf6 {[%clk 0:02:53]} 8. Bd3 {[%clk 0:02:53]}  Qc7 {[%clk 0:02:52]} 9. O-O {[%clk 0:02:52]}  Nc6 {[%clk 0:02:51]} 10. Nxc6 {[%clk 0:02:52]}  Bxc6 {[%clk 0:02:51]} 11. c4 {[%clk 0:02:45]}  b4 {[%clk 0:02:49]} 12. f4 {[%clk 0:02:41]}  Bc5+ {[%clk 0:02:46]} 13. Kh1 {[%clk 0:02:42]}  h5 {[%clk 0:02:45]} 14. Qe2 {[%clk 0:02:27]}  h4 {[%clk 0:02:41]} 15. Bxf6 {[%clk 0:02:04]}  gxf6 {[%clk 0:02:40]} 16. h3 {[%clk 0:02:04]}  Ke7 {[%clk 0:02:35]} 17. Rf3 {[%clk 0:02:00]}  Rag8 {[%clk 0:02:33]} 18. Nf1 {[%clk 0:02:01]}  Kd8 {[%clk 0:02:29]} 19. Qb2 {[%clk 0:01:46]}  Rh6 {[%clk 0:02:24]} 20. Re1 {[%clk 0:01:40]}  a5 {[%clk 0:02:20]} 21. f5 {[%clk 0:01:23]}  Qe5 {[%clk 0:02:15]} 22. Qxe5 {[%clk 0:01:23]}  fxe5 {[%clk 0:02:15]} 23. Ne3 {[%clk 0:01:20]}  Bxe3 {[%clk 0:02:08]} 24. Rexe3 {[%clk 0:01:21]}  Ke7 {[%clk 0:02:04]} 25. Re2 {[%clk 0:01:19]}  f6 {[%clk 0:02:01]} 26. Kg1 {[%clk 0:01:18]}  Rh5 {[%clk 0:01:54]} 27. Ref2 {[%clk 0:01:14]}  exf5 {[%clk 0:01:54]} 28. Rxf5 {[%clk 0:01:15]}  Rxf5 {[%clk 0:01:54]} 29. Rxf5 {[%clk 0:01:16]}  Rg3 {[%clk 0:01:53]} 30. Bc2 {[%clk 0:00:37]}  Rc3 {[%clk 0:01:46]} 31. Rf2 {[%clk 0:00:37]}  Re3 {[%clk 0:01:43]} 32. Rd2 {[%clk 0:00:37]}  Re1+ {[%clk 0:01:30]} 33. Kf2 {[%clk 0:00:37]}  Rc1 {[%clk 0:01:30]} 34. g3 {[%clk 0:00:32]}  hxg3+ {[%clk 0:01:27]} 35. Kxg3 {[%clk 0:00:33]}  Rg1+ {[%clk 0:01:22]} 36. Kf2 {[%clk 0:00:21]}  Rh1 {[%clk 0:01:21]} 37. Kg2 {[%clk 0:00:21]}  Rc1 {[%clk 0:01:17]} 38. Kg3 {[%clk 0:00:21]}  Kf7 {[%clk 0:01:12]} 39. Bd1 {[%clk 0:00:20]}  Bxe4 {[%clk 0:01:09]} 40. Rxd7+ {[%clk 0:00:20]}  Ke6 {[%clk 0:01:10]} 41. Rd2 {[%clk 0:00:20]}  f5 {[%clk 0:01:10]} 42. h4 {[%clk 0:00:21]}  Rc3+ {[%clk 0:01:10]} 43. Kh2 {[%clk 0:00:20]}  f4 {[%clk 0:01:08]} 44. h5 {[%clk 0:00:19]}  Bf5 {[%clk 0:01:07]} 45. Kg1 {[%clk 0:00:15]}  e4 {[%clk 0:01:06]} 46. h6 {[%clk 0:00:15]}  Rg3+ {[%clk 0:01:05]} 47. Rg2 {[%clk 0:00:15]}  Rxg2+ {[%clk 0:00:52]} 48. Kxg2 {[%clk 0:00:16]}  Kf6 {[%clk 0:00:52]} 49. c5 {[%clk 0:00:14]}  Kg6 {[%clk 0:00:53]} 50. c6 {[%clk 0:00:14]}  Kxh6 {[%clk 0:00:53]} 51. Kf2 {[%clk 0:00:09]}  Kg5 {[%clk 0:00:52]} 52. Be2 {[%clk 0:00:09]}  Bc8 {[%clk 0:00:49]} 53. Bf1 {[%clk 0:00:07]}  Kf6 {[%clk 0:00:49]} 0-1


[Site "https://www.chess.com"]

[Event "Titled Tuesday Blitz May 10 Early 2022"]
[White "Sailer, Mike"]
[Black "Dorokhin, Mykhailo"]
[WhiteFideId "2012901"]
[BlackFideId "14114178"]
[WhiteElo "2109"]
[BlackElo "2280"]
[Result "0-1"]
[Round "05"]
[TimeControl "180+1"]
[Date "2022.05.11"]
[WhiteClock "0:00:02"]
[BlackClock "0:01:52"]

1. Nf3 {[%clk 0:02:59]}  d5 {[%clk 0:02:28]} 2. d4 {[%clk 0:02:59]}  Nf6 {[%clk 0:02:25]} 3. Bf4 {[%clk 0:02:59]}  Bf5 {[%clk 0:02:26]} 4. e3 {[%clk 0:02:59]}  e6 {[%clk 0:02:27]} 5. Be2 {[%clk 0:02:54]}  Bd6 {[%clk 0:02:28]} 6. Bg3 {[%clk 0:02:42]}  Bxg3 {[%clk 0:02:25]} 7. hxg3 {[%clk 0:02:42]}  c5 {[%clk 0:02:25]} 8. Nc3 {[%clk 0:02:26]}  cxd4 {[%clk 0:02:23]} 9. Nxd4 {[%clk 0:02:26]}  Bg6 {[%clk 0:02:24]} 10. Bd3 {[%clk 0:02:23]}  Bxd3 {[%clk 0:02:22]} 11. Qxd3 {[%clk 0:02:23]}  Qb6 {[%clk 0:02:23]} 12. Qb5+ {[%clk 0:02:18]}  Qxb5 {[%clk 0:02:22]} 13. Ndxb5 {[%clk 0:02:18]}  Na6 {[%clk 0:02:23]} 14. O-O-O {[%clk 0:01:58]}  Ke7 {[%clk 0:02:23]} 15. f3 {[%clk 0:01:53]}  h6 {[%clk 0:02:22]} 16. g4 {[%clk 0:01:53]}  Rhc8 {[%clk 0:02:22]} 17. Rhe1 {[%clk 0:01:44]}  Nc7 {[%clk 0:02:21]} 18. Nd4 {[%clk 0:01:38]}  a6 {[%clk 0:02:21]} 19. e4 {[%clk 0:01:36]}  dxe4 {[%clk 0:02:21]} 20. Nxe4 {[%clk 0:01:36]}  Nxe4 {[%clk 0:02:21]} 21. Rxe4 {[%clk 0:01:36]}  Nd5 {[%clk 0:02:21]} 22. Nf5+ {[%clk 0:01:32]}  Kf6 {[%clk 0:02:21]} 23. Ng3 {[%clk 0:01:19]}  g6 {[%clk 0:02:20]} 24. Kb1 {[%clk 0:01:10]}  b5 {[%clk 0:02:18]} 25. a3 {[%clk 0:01:07]}  Rd8 {[%clk 0:02:15]} 26. Red4 {[%clk 0:01:06]}  Rac8 {[%clk 0:02:14]} 27. Ne4+ {[%clk 0:01:06]}  Ke7 {[%clk 0:02:13]} 28. R1d2 {[%clk 0:00:51]}  f5 {[%clk 0:02:12]} 29. gxf5 {[%clk 0:00:50]}  gxf5 {[%clk 0:02:13]} 30. Ng3 {[%clk 0:00:42]}  Kf6 {[%clk 0:02:13]} 31. Nh5+ {[%clk 0:00:42]}  Kg5 {[%clk 0:02:12]} 32. Ng7 {[%clk 0:00:33]}  Kf6 {[%clk 0:02:10]} 33. Nh5+ {[%clk 0:00:31]}  Kf7 {[%clk 0:02:10]} 34. Nf4 {[%clk 0:00:28]}  Rc5 {[%clk 0:02:03]} 35. Nxd5 {[%clk 0:00:24]}  Rcxd5 {[%clk 0:02:03]} 36. Rxd5 {[%clk 0:00:23]}  exd5 {[%clk 0:02:04]} 37. Re2 {[%clk 0:00:21]}  Kf6 {[%clk 0:02:03]} 38. Kc1 {[%clk 0:00:20]}  h5 {[%clk 0:02:02]} 39. Kd2 {[%clk 0:00:20]}  h4 {[%clk 0:02:02]} 40. Kd3 {[%clk 0:00:19]}  d4 {[%clk 0:01:55]} 41. Re1 {[%clk 0:00:10]}  a5 {[%clk 0:01:54]} 42. Re2 {[%clk 0:00:10]}  a4 {[%clk 0:01:54]} 43. Re1 {[%clk 0:00:08]}  Kg5 {[%clk 0:01:54]} 44. Re5 {[%clk 0:00:08]}  Kf4 {[%clk 0:01:54]} 45. Rxb5 {[%clk 0:00:08]}  Rf8 {[%clk 0:01:53]} 46. Kxd4 {[%clk 0:00:07]}  Kg3 {[%clk 0:01:53]} 47. Rb7 {[%clk 0:00:01]}  Kxg2 {[%clk 0:01:53]} 48. Rg7+ {[%clk 0:00:02]}  Kxf3 {[%clk 0:01:53]} 49. c4 {[%clk 0:00:02]}  Rh8 {[%clk 0:01:52]} 50. c5 {[%clk 0:00:02]}  h3 {[%clk 0:01:52]} 51. c6 {[%clk 0:00:02]}  h2 {[%clk 0:01:52]} 0-1


[Site "https://www.chess.com"]

[Event "Titled Tuesday Blitz May 10 Early 2022"]
[White "Sapunov, Evgeny"]
[Black "Bortnyk, Olexandr"]
[WhiteFideId "4126661"]
[BlackFideId "14120828"]
[WhiteElo "2470"]
[BlackElo "2723"]
[Result "0-1"]
[Round "05"]
[TimeControl "180+1"]
[Date "2022.05.10"]
[WhiteClock "0:00:05"]
[BlackClock "0:00:12"]

1. c4 {[%clk 0:02:59]}  d6 {[%clk 0:02:59]} 2. Nf3 {[%clk 0:02:59]}  e5 {[%clk 0:02:58]} 3. Nc3 {[%clk 0:02:59]}  f5 {[%clk 0:02:57]} 4. g3 {[%clk 0:02:58]}  Nf6 {[%clk 0:02:56]} 5. Bg2 {[%clk 0:02:58]}  g6 {[%clk 0:02:51]} 6. d3 {[%clk 0:02:58]}  Bg7 {[%clk 0:02:52]} 7. O-O {[%clk 0:02:59]}  Nc6 {[%clk 0:02:46]} 8. Rb1 {[%clk 0:02:54]}  O-O {[%clk 0:02:36]} 9. b4 {[%clk 0:02:52]}  h6 {[%clk 0:02:36]} 10. b5 {[%clk 0:02:52]}  Ne7 {[%clk 0:02:36]} 11. a4 {[%clk 0:02:52]}  Kh7 {[%clk 0:02:33]} 12. Ba3 {[%clk 0:02:47]}  Be6 {[%clk 0:02:26]} 13. Nd2 {[%clk 0:02:31]}  Rb8 {[%clk 0:02:24]} 14. Qb3 {[%clk 0:02:30]}  g5 {[%clk 0:02:20]} 15. Nd5 {[%clk 0:02:28]}  Ng6 {[%clk 0:02:05]} 16. e3 {[%clk 0:02:02]}  h5 {[%clk 0:02:04]} 17. f4 {[%clk 0:01:49]}  Ng4 {[%clk 0:01:58]} 18. fxe5 {[%clk 0:01:19]}  Bxd5 {[%clk 0:01:39]} 19. cxd5 {[%clk 0:01:17]}  Nxe3 {[%clk 0:01:40]} 20. e6 {[%clk 0:01:15]}  Nxf1 {[%clk 0:01:36]} 21. Rxf1 {[%clk 0:01:15]}  Bd4+ {[%clk 0:01:31]} 22. Kh1 {[%clk 0:01:14]}  g4 {[%clk 0:01:32]} 23. Bb2 {[%clk 0:01:07]}  Bxb2 {[%clk 0:01:31]} 24. Qxb2 {[%clk 0:01:07]}  h4 {[%clk 0:01:32]} 25. Kg1 {[%clk 0:00:46]}  Qg5 {[%clk 0:01:27]} 26. Nc4 {[%clk 0:00:43]}  h3 {[%clk 0:01:23]} 27. Bh1 {[%clk 0:00:42]}  Kh6 {[%clk 0:01:11]} 28. Qd2 {[%clk 0:00:24]}  f4 {[%clk 0:01:07]} 29. gxf4 {[%clk 0:00:20]}  Rxf4 {[%clk 0:00:50]} 30. Rxf4 {[%clk 0:00:19]}  Nxf4 {[%clk 0:00:51]} 31. Be4 {[%clk 0:00:16]}  g3 {[%clk 0:00:51]} 32. hxg3 {[%clk 0:00:15]}  Qxg3+ {[%clk 0:00:51]} 33. Kh1 {[%clk 0:00:15]}  Rg8 {[%clk 0:00:50]} 34. Qe3 {[%clk 0:00:15]}  Qxe3 {[%clk 0:00:30]} 35. Nxe3 {[%clk 0:00:14]}  Kg5 {[%clk 0:00:31]} 36. Kh2 {[%clk 0:00:13]}  Kf6 {[%clk 0:00:29]} 37. Nc4 {[%clk 0:00:12]}  Rg5 {[%clk 0:00:29]} 38. Na5 {[%clk 0:00:11]}  Nxd5 {[%clk 0:00:24]} 39. Nxb7 {[%clk 0:00:11]}  Nf4 {[%clk 0:00:16]} 40. Nd8 {[%clk 0:00:11]}  d5 {[%clk 0:00:17]} 41. Bf3 {[%clk 0:00:09]}  Nxd3 {[%clk 0:00:15]} 42. Nc6 {[%clk 0:00:09]}  Kxe6 {[%clk 0:00:13]} 43. a5 {[%clk 0:00:07]}  Ne5 {[%clk 0:00:13]} 44. Nxe5 {[%clk 0:00:05]}  Kxe5 {[%clk 0:00:12]} 0-1


[Site "https://www.chess.com"]

[Event "Titled Tuesday Blitz May 10 Early 2022"]
[White "Sarana, Alexey"]
[Black "Gharibyan, Mamikon"]
[WhiteFideId "24133795"]
[BlackFideId "13308300"]
[WhiteElo "2666"]
[BlackElo "2254"]
[Result "0-1"]
[Round "05"]
[TimeControl "180+1"]
[Date "2022.05.10"]
[WhiteClock "0:00:10"]
[BlackClock "0:00:04"]

1. d4 {[%clk 0:02:54]}  Nf6 {[%clk 0:02:59]} 2. c4 {[%clk 0:02:53]}  e6 {[%clk 0:02:59]} 3. Nc3 {[%clk 0:02:53]}  d5 {[%clk 0:03:00]} 4. e3 {[%clk 0:02:54]}  a6 {[%clk 0:02:44]} 5. Nf3 {[%clk 0:02:51]}  dxc4 {[%clk 0:02:44]} 6. a4 {[%clk 0:02:51]}  c5 {[%clk 0:02:40]} 7. Bxc4 {[%clk 0:02:51]}  Nc6 {[%clk 0:02:40]} 8. O-O {[%clk 0:02:50]}  Be7 {[%clk 0:02:33]} 9. dxc5 {[%clk 0:02:50]}  Qc7 {[%clk 0:02:16]} 10. e4 {[%clk 0:02:41]}  O-O {[%clk 0:02:02]} 11. Qe2 {[%clk 0:02:35]}  Ng4 {[%clk 0:01:55]} 12. g3 {[%clk 0:02:22]}  Bxc5 {[%clk 0:01:53]} 13. Bf4 {[%clk 0:02:22]}  e5 {[%clk 0:01:29]} 14. Nd5 {[%clk 0:02:19]}  Qd6 {[%clk 0:01:29]} 15. Be3 {[%clk 0:02:12]}  Nxe3 {[%clk 0:01:23]} 16. fxe3 {[%clk 0:02:13]}  Bg4 {[%clk 0:01:15]} 17. Rad1 {[%clk 0:02:12]}  Qh6 {[%clk 0:01:14]} 18. Rd3 {[%clk 0:01:47]}  Kh8 {[%clk 0:01:12]} 19. Qf2 {[%clk 0:01:40]}  f5 {[%clk 0:01:00]} 20. exf5 {[%clk 0:00:56]}  e4 {[%clk 0:00:56]} 21. b4 {[%clk 0:00:55]}  Rxf5 {[%clk 0:00:38]} 22. Nf4 {[%clk 0:00:43]}  Nxb4 {[%clk 0:00:29]} 23. Ne5 {[%clk 0:00:30]}  Nxd3 {[%clk 0:00:20]} 24. Nxg4 {[%clk 0:00:15]}  Qg5 {[%clk 0:00:15]} 25. Bxd3 {[%clk 0:00:15]}  exd3 {[%clk 0:00:15]} 26. Qf3 {[%clk 0:00:15]}  d2 {[%clk 0:00:13]} 27. Nf2 {[%clk 0:00:15]}  Qe7 {[%clk 0:00:11]} 28. e4 {[%clk 0:00:11]}  Rff8 {[%clk 0:00:08]} 29. Qh5 {[%clk 0:00:11]}  Kg8 {[%clk 0:00:04]} 30. Qd5+ {[%clk 0:00:11]}  Rf7 {[%clk 0:00:04]} 31. Qxd2 {[%clk 0:00:09]}  Qxe4 {[%clk 0:00:04]} 32. Rc1 {[%clk 0:00:08]}  Qe3 {[%clk 0:00:04]} 33. Qc2 {[%clk 0:00:05]}  Qxf2+ {[%clk 0:00:05]} 34. Qxf2 {[%clk 0:00:05]}  Bxf2+ {[%clk 0:00:05]} 35. Kxf2 {[%clk 0:00:06]}  g5 {[%clk 0:00:06]} 36. Kf3 {[%clk 0:00:07]}  gxf4 {[%clk 0:00:06]} 37. gxf4 {[%clk 0:00:08]}  Raf8 {[%clk 0:00:07]} 38. Rc4 {[%clk 0:00:07]}  b5 {[%clk 0:00:07]} 39. axb5 {[%clk 0:00:08]}  axb5 {[%clk 0:00:08]} 40. Rb4 {[%clk 0:00:09]}  Rf5 {[%clk 0:00:08]} 41. Kg4 {[%clk 0:00:09]}  Kg7 {[%clk 0:00:08]} 42. h4 {[%clk 0:00:10]}  h5+ {[%clk 0:00:08]} 43. Kf3 {[%clk 0:00:10]}  Kg6 {[%clk 0:00:08]} 44. Rd4 {[%clk 0:00:08]}  Rc5 {[%clk 0:00:08]} 45. Rd6+ {[%clk 0:00:08]}  Rf6 {[%clk 0:00:08]} 46. Rd8 {[%clk 0:00:08]}  Rc4 {[%clk 0:00:08]} 47. Rg8+ {[%clk 0:00:07]}  Kf7 {[%clk 0:00:09]} 48. Rg5 {[%clk 0:00:08]}  Rfxf4+ {[%clk 0:00:09]} 49. Ke3 {[%clk 0:00:08]}  b4 {[%clk 0:00:09]} 50. Rxh5 {[%clk 0:00:08]}  Rxh4 {[%clk 0:00:09]} 51. Rb5 {[%clk 0:00:08]}  Rh3+ {[%clk 0:00:09]} 52. Kd2 {[%clk 0:00:08]}  Rg4 {[%clk 0:00:08]} 53. Rf5+ {[%clk 0:00:09]}  Kg6 {[%clk 0:00:08]} 54. Rf2 {[%clk 0:00:10]}  b3 {[%clk 0:00:08]} 55. Kc1 {[%clk 0:00:10]}  Rhg3 {[%clk 0:00:06]} 56. Rf8 {[%clk 0:00:09]}  Rc4+ {[%clk 0:00:03]} 57. Kb2 {[%clk 0:00:09]}  Rc2+ {[%clk 0:00:04]} 58. Ka3 {[%clk 0:00:09]}  Ra2+ {[%clk 0:00:04]} 59. Kb4 {[%clk 0:00:09]}  b2 {[%clk 0:00:04]} 60. Rg8+ {[%clk 0:00:09]}  Kf5 {[%clk 0:00:04]} 61. Rxg3 {[%clk 0:00:10]}  b1=Q+ {[%clk 0:00:04]} 62. Rb3 {[%clk 0:00:10]}  Qe1+ {[%clk 0:00:04]} 63. Kb5 {[%clk 0:00:11]}  Ra5+ {[%clk 0:00:04]} 64. Kb6 {[%clk 0:00:11]}  Re5 {[%clk 0:00:04]} 65. Ka6 {[%clk 0:00:10]}  Qd1 {[%clk 0:00:04]} 66. Rb6 {[%clk 0:00:10]}  Re6 {[%clk 0:00:04]} 0-1


[Site "https://www.chess.com"]

[Event "Titled Tuesday Blitz May 10 Early 2022"]
[White "Shashikant, Kutwal"]
[Black "Ardila, Oscar Humberto"]
[WhiteFideId "5006520"]
[BlackFideId "4404742"]
[WhiteElo "2321"]
[BlackElo "1928"]
[Result "1-0"]
[Round "05"]
[TimeControl "180+1"]
[Date "2022.05.11"]
[WhiteClock "0:00:18"]
[BlackClock "0:00:06"]

1. e4 {[%clk 0:03:00]}  e5 {[%clk 0:02:45]} 2. Nf3 {[%clk 0:03:01]}  Nf6 {[%clk 0:02:44]} 3. Nxe5 {[%clk 0:03:00]}  d6 {[%clk 0:02:44]} 4. Nf3 {[%clk 0:03:01]}  Nxe4 {[%clk 0:02:44]} 5. Nc3 {[%clk 0:03:01]}  Nxc3 {[%clk 0:02:44]} 6. dxc3 {[%clk 0:03:02]}  Be7 {[%clk 0:02:44]} 7. Be3 {[%clk 0:03:03]}  O-O {[%clk 0:02:45]} 8. Qd2 {[%clk 0:03:03]}  Nd7 {[%clk 0:02:45]} 9. O-O-O {[%clk 0:03:03]}  Nf6 {[%clk 0:02:46]} 10. h4 {[%clk 0:02:59]}  c6 {[%clk 0:02:45]} 11. h5 {[%clk 0:02:54]}  Qa5 {[%clk 0:02:44]} 12. Kb1 {[%clk 0:02:42]}  Be6 {[%clk 0:02:44]} 13. b3 {[%clk 0:02:34]}  Ne4 {[%clk 0:02:43]} 14. Qe1 {[%clk 0:02:18]}  Nxc3+ {[%clk 0:02:41]} 15. Kc1 {[%clk 0:02:17]}  Qa3+ {[%clk 0:01:56]} 16. Kd2 {[%clk 0:02:16]}  Nxd1 {[%clk 0:01:55]} 17. Qxd1 {[%clk 0:02:17]}  Qxa2 {[%clk 0:01:51]} 18. Bd3 {[%clk 0:02:14]}  Bf6 {[%clk 0:01:48]} 19. Nd4 {[%clk 0:01:59]}  Qa5+ {[%clk 0:01:47]} 20. Ke2 {[%clk 0:01:54]}  Rfe8 {[%clk 0:01:43]} 21. Kf1 {[%clk 0:01:47]}  h6 {[%clk 0:01:20]} 22. Nxe6 {[%clk 0:01:31]}  Rxe6 {[%clk 0:01:20]} 23. Rh3 {[%clk 0:01:31]}  Rae8 {[%clk 0:01:12]} 24. Qg4 {[%clk 0:01:03]}  Qa1+ {[%clk 0:00:57]} 25. Ke2 {[%clk 0:01:02]}  Re5 {[%clk 0:00:52]} 26. f4 {[%clk 0:00:31]}  R5e6 {[%clk 0:00:14]} 27. Qf5 {[%clk 0:00:28]}  Rxe3+ {[%clk 0:00:06]} 28. Rxe3 {[%clk 0:00:27]}  Rxe3+ {[%clk 0:00:07]} 29. Kxe3 {[%clk 0:00:28]}  Qe1+ {[%clk 0:00:07]} 30. Kf3 {[%clk 0:00:27]}  Qd1+ {[%clk 0:00:06]} 31. Ke3 {[%clk 0:00:20]}  Qe1+ {[%clk 0:00:06]} 32. Kf3 {[%clk 0:00:20]}  d5 {[%clk 0:00:06]} 33. Qc8+ {[%clk 0:00:18]} 1-0


[Site "https://www.chess.com"]

[Event "Titled Tuesday Blitz May 10 Early 2022"]
[White "Shyaamnikhil P"]
[Black "Samadov, Read"]
[WhiteFideId "5024218"]
[BlackFideId "13417444"]
[WhiteElo "2329"]
[BlackElo "2084"]
[Result "0-1"]
[Round "05"]
[TimeControl "180+1"]
[Date "2022.05.10"]
[WhiteClock "0:00:12"]
[BlackClock "0:01:15"]

1. d4 {[%clk 0:03:00]}  Nf6 {[%clk 0:02:58]} 2. Nf3 {[%clk 0:03:00]}  e6 {[%clk 0:02:58]} 3. c4 {[%clk 0:02:58]}  d5 {[%clk 0:02:58]} 4. Nc3 {[%clk 0:02:57]}  Bb4 {[%clk 0:02:56]} 5. Qa4+ {[%clk 0:02:56]}  Nc6 {[%clk 0:02:56]} 6. e3 {[%clk 0:02:56]}  O-O {[%clk 0:02:55]} 7. Qc2 {[%clk 0:02:55]}  dxc4 {[%clk 0:02:51]} 8. Bxc4 {[%clk 0:02:54]}  Bd6 {[%clk 0:02:51]} 9. Bd2 {[%clk 0:02:42]}  a6 {[%clk 0:02:49]} 10. O-O {[%clk 0:02:33]}  e5 {[%clk 0:02:47]} 11. dxe5 {[%clk 0:02:28]}  Nxe5 {[%clk 0:02:47]} 12. Nxe5 {[%clk 0:02:28]}  Bxe5 {[%clk 0:02:47]} 13. f4 {[%clk 0:02:25]}  Bd6 {[%clk 0:02:46]} 14. Kh1 {[%clk 0:01:55]}  b5 {[%clk 0:02:45]} 15. Be2 {[%clk 0:01:52]}  Bb7 {[%clk 0:02:44]} 16. Bf3 {[%clk 0:01:52]}  Bxf3 {[%clk 0:02:44]} 17. Rxf3 {[%clk 0:01:53]}  Re8 {[%clk 0:02:43]} 18. e4 {[%clk 0:01:48]}  b4 {[%clk 0:02:33]} 19. e5 {[%clk 0:01:47]}  bxc3 {[%clk 0:02:31]} 20. Bxc3 {[%clk 0:01:46]}  Nd5 {[%clk 0:01:41]} 21. exd6 {[%clk 0:01:28]}  cxd6 {[%clk 0:01:41]} 22. Qd2 {[%clk 0:01:21]}  Nxc3 {[%clk 0:01:40]} 23. Rxc3 {[%clk 0:01:20]}  Rb8 {[%clk 0:01:33]} 24. b3 {[%clk 0:01:19]}  Qf6 {[%clk 0:01:30]} 25. Rd1 {[%clk 0:01:15]}  Re4 {[%clk 0:01:24]} 26. Qc2 {[%clk 0:00:41]}  Qe6 {[%clk 0:01:21]} 27. g3 {[%clk 0:00:15]}  Re8 {[%clk 0:01:20]} 28. Rf3 {[%clk 0:00:13]}  Re2 {[%clk 0:01:18]} 29. Qc4 {[%clk 0:00:12]}  Qh3 {[%clk 0:01:15]} 0-1


[Site "https://www.chess.com"]

[Event "Titled Tuesday Blitz May 10 Early 2022"]
[White "Silva, Winston Joseph R"]
[Black "Needleman, Alejandro"]
[WhiteFideId "5210542"]
[BlackFideId "100730"]
[WhiteElo "1995"]
[BlackElo "2343"]
[Result "0-1"]
[Round "05"]
[TimeControl "180+1"]
[Date "2022.05.11"]
[WhiteClock "0:00:13"]
[BlackClock "0:02:09"]

1. e4 {[%clk 0:00:27]}  c5 {[%clk 0:02:56]} 2. Nf3 {[%clk 0:00:26]}  e6 {[%clk 0:02:56]} 3. d4 {[%clk 0:00:27]}  cxd4 {[%clk 0:02:57]} 4. c3 {[%clk 0:00:28]}  d3 {[%clk 0:02:55]} 5. Bxd3 {[%clk 0:00:28]}  Nc6 {[%clk 0:02:55]} 6. Bc4 {[%clk 0:00:28]}  d6 {[%clk 0:02:52]} 7. Qe2 {[%clk 0:00:28]}  Nf6 {[%clk 0:02:49]} 8. O-O {[%clk 0:00:29]}  e5 {[%clk 0:02:49]} 9. Rd1 {[%clk 0:00:28]}  Bg4 {[%clk 0:02:49]} 10. h3 {[%clk 0:00:26]}  Bh5 {[%clk 0:02:48]} 11. Bg5 {[%clk 0:00:25]}  Be7 {[%clk 0:02:47]} 12. Na3 {[%clk 0:00:25]}  a6 {[%clk 0:02:46]} 13. Rd2 {[%clk 0:00:24]}  O-O {[%clk 0:02:40]} 14. Rad1 {[%clk 0:00:24]}  b5 {[%clk 0:02:34]} 15. Bb3 {[%clk 0:00:20]}  b4 {[%clk 0:02:29]} 16. Bxf6 {[%clk 0:00:19]}  Bxf6 {[%clk 0:02:27]} 17. Rxd6 {[%clk 0:00:19]}  Qc7 {[%clk 0:02:19]} 18. cxb4 {[%clk 0:00:18]}  Nd4 {[%clk 0:02:17]} 19. R1xd4 {[%clk 0:00:17]}  exd4 {[%clk 0:02:16]} 20. Rxf6 {[%clk 0:00:14]}  gxf6 {[%clk 0:02:13]} 21. Qd2 {[%clk 0:00:13]}  Bxf3 {[%clk 0:02:10]} 22. gxf3 {[%clk 0:00:13]}  Qe5 {[%clk 0:02:09]} 23. Qh6 {[%clk 0:00:13]}  Qg5+ {[%clk 0:02:08]} 24. Qxg5+ {[%clk 0:00:12]}  fxg5 {[%clk 0:02:09]} 25. Nc4 {[%clk 0:00:13]} 0-1


[Site "https://www.chess.com"]

[Event "Titled Tuesday Blitz May 10 Early 2022"]
[White "Sjoberg, Isak"]
[Black "Dang, Hoang Son"]
[WhiteFideId "1521640"]
[BlackFideId "12402435"]
[WhiteElo "2037"]
[BlackElo "2252"]
[Result "0-1"]
[Round "05"]
[TimeControl "180+1"]
[Date "2022.05.11"]
[WhiteClock "0:00:22"]
[BlackClock "0:01:13"]

1. h4 {[%clk 0:03:00]}  Nf6 {[%clk 0:02:58]} 2. h5 {[%clk 0:03:00]}  e5 {[%clk 0:02:58]} 3. h6 {[%clk 0:02:59]}  g6 {[%clk 0:02:57]} 4. d3 {[%clk 0:02:58]}  d5 {[%clk 0:02:57]} 5. g3 {[%clk 0:02:59]}  c5 {[%clk 0:02:56]} 6. Bg2 {[%clk 0:02:59]}  Nc6 {[%clk 0:02:57]} 7. c4 {[%clk 0:02:59]}  dxc4 {[%clk 0:02:57]} 8. dxc4 {[%clk 0:02:50]}  Qxd1+ {[%clk 0:02:58]} 9. Kxd1 {[%clk 0:02:51]}  Be6 {[%clk 0:02:57]} 10. b3 {[%clk 0:02:41]}  O-O-O+ {[%clk 0:02:58]} 11. Ke1 {[%clk 0:02:39]}  Nb4 {[%clk 0:02:47]} 12. Na3 {[%clk 0:02:39]}  a6 {[%clk 0:02:41]} 13. Bg5 {[%clk 0:02:39]}  Be7 {[%clk 0:02:41]} 14. Nf3 {[%clk 0:02:38]}  e4 {[%clk 0:02:34]} 15. Nd2 {[%clk 0:02:30]}  Bf5 {[%clk 0:02:27]} 16. Rh4 {[%clk 0:02:13]}  Rhe8 {[%clk 0:02:26]} 17. Rf4 {[%clk 0:01:18]}  Nh5 {[%clk 0:02:11]} 18. Rxf5 {[%clk 0:00:46]}  gxf5 {[%clk 0:02:08]} 19. Bxe7 {[%clk 0:00:45]}  Rxe7 {[%clk 0:02:08]} 20. Bh3 {[%clk 0:00:45]}  e3 {[%clk 0:02:07]} 21. Bxf5+ {[%clk 0:00:44]}  Kb8 {[%clk 0:02:06]} 22. Ne4 {[%clk 0:00:42]}  Rd4 {[%clk 0:01:51]} 23. g4 {[%clk 0:00:35]}  exf2+ {[%clk 0:01:43]} 24. Kxf2 {[%clk 0:00:28]}  Nf4 {[%clk 0:01:43]} 25. e3 {[%clk 0:00:27]}  Nfd3+ {[%clk 0:01:42]} 26. Kf3 {[%clk 0:00:26]}  Ne5+ {[%clk 0:01:42]} 27. Ke2 {[%clk 0:00:24]}  Rxe4 {[%clk 0:01:26]} 28. Bxe4 {[%clk 0:00:23]}  Nxg4 {[%clk 0:01:26]} 29. Bxh7 {[%clk 0:00:22]}  Rxe3+ {[%clk 0:01:25]} 30. Kd2 {[%clk 0:00:23]}  Rh3 {[%clk 0:01:22]} 31. Re1 {[%clk 0:00:23]}  Rxh6 {[%clk 0:01:20]} 32. Bf5 {[%clk 0:00:23]}  Nf6 {[%clk 0:01:15]} 33. Re7 {[%clk 0:00:23]}  Rh2+ {[%clk 0:01:14]} 34. Ke3 {[%clk 0:00:24]}  Rxa2 {[%clk 0:01:13]} 35. Nb1 {[%clk 0:00:22]}  Rb2 {[%clk 0:01:11]} 36. Nd2 {[%clk 0:00:23]}  Nfd5+ {[%clk 0:01:11]} 37. cxd5 {[%clk 0:00:22]}  Nxd5+ {[%clk 0:01:12]} 38. Kd3 {[%clk 0:00:22]}  Nxe7 {[%clk 0:01:13]} 0-1


[Site "https://www.chess.com"]